bitfinex/quotes_ETHUSD_20250213
["timestamp","ask_amount","ask_price","bid_price","bid_amount"]
[1739453932512,0.8322,2669.5,2668.8,3.74693]
[1739453932714,1.1972,2669.5,2668.6,3.74717]
[1739453932917,1.1972,2669.5,2668.5,0.7981]
[1739453933099,1.1972,2669.5,2668.7,3.74712]
[1739453933301,1.1972,2669.5,2668.5,0.7981]
[1739453933302,1.1972,2669.5,2668.5,4.54543]
[1739453933481,1.1972,2669.5,2668.2,3.74784]
[1739453933687,3.74696,2668.9,2668.2,3.74784]
[1739453933901,3.7463,2669.3,2668.0,3.74801]
[1739453933902,3.74734,2668.6,2668.0,3.74801]
[1739453934123,3.74734,2668.6,2667.2,3.7492]
[1739453934124,3.74734,2668.6,2668.1,3.74795]
[1739453934536,3.74705,2668.8,2668.1,3.74789]
[1739453934844,3.74675,2669.0,2668.4,3.74753]
[1739453935139,3.74675,2669.0,2668.4,3.74747]
[1739453935303,3.74675,2669.0,2668.3,3.74762]
[1739453935503,7.49447,2668.7,2668.1,3.7479]
[1739453935733,4.92526794,2669.2,2667.8,3.74837]
[1739453935936,3.74688,2668.9,2668.3,3.74759]
[1739453936094,3.74681,2669.0,2668.4,3.74747]
[1739453936294,3.74681,2669.0,2668.5,3.74741]
[1739453936499,3.74689,2668.9,2668.3,3.74759]
[1739453936694,3.74681,2669.0,2668.4,3.74747]
[1739453936998,3.74712,2668.8,2668.2,3.0]
[1739453937305,3.74717,2668.7,2668.2,3.0]
[1739453937509,3.747,2668.8,2668.3,3.74758]
[1739453938042,3.7472,2668.7,2668.1,6.74787]
[1739453938444,3.7472,2668.7,2667.7,0.8179]
[1739453938445,3.74744,2668.5,2668.0,3.0]
[1739453938589,3.74751,2668.5,2667.9,3.74823]
[1739453938939,0.36,2668.4,2668.0,3.74804]
[1739453939688,3.7477,2668.3,2667.9,3.0]
[1739453939896,3.74784,2668.2,2667.4,3.74882]
[1739453940099,3.74809,2668.1,2667.5,3.74881]
[1739453940296,3.74805,2668.1,2667.5,3.74873]
[1739453940869,3.74805,2668.1,2667.3,3.0]
[1739453940870,0.36,2668.4,2667.9,3.74819]
[1739453940996,3.74798,2668.1,2667.2,3.74917]
[1739453941192,3.74798,2668.1,2666.7,3.74985]
[1739453941193,3.74919,2667.3,2666.7,3.74985]
[1739453941613,0.359,2667.3,2667.0,3.74941]
[1739453941878,0.359,2667.3,2667.1,3.0]
[1739453942187,0.359,2667.3,2666.6,0.8315]
[1739453942458,4.10819,2667.3,2666.5,3.75014]
[1739453942609,0.359,2667.3,2666.6,3.0]
[1739453942811,0.359,2667.3,2666.9,3.74954]
[1739453943024,0.7565,2667.4,2666.7,3.0]
[1739453943239,0.358,2667.3,2667.2,3.74925]
[1739453943826,0.358,2667.7,2667.6,3.7486]
[1739453944026,3.74779,2668.3,2667.0,0.8271]
[1739453944027,0.7516,2668.4,2667.9,3.74825]
[1739453944243,0.7516,2668.4,2668.0,3.0]
[1739453944424,0.358,2668.5,2668.4,3.74756]
[1739453944753,6.67338337,2669.3,2668.5,3.74742]
[1739453944754,0.358,2668.9,2668.5,3.74742]
[1739453945102,0.358,2668.9,2668.4,6.74756]
[1739453945103,0.358,2668.9,2668.4,3.0]
[1739453945355,4.10488,2668.9,2668.4,3.0]
[1739453945554,4.1051,2668.8,2668.4,3.0]
[1739453945742,3.74718,2668.7,2668.4,3.0]
[1739453946061,3.74806,2668.1,2667.3,0.8257]
[1739453946353,0.775,2668.3,2667.0,3.74941]
[1739453946354,3.74847,2667.8,2667.0,3.74941]
[1739453946583,3.74871,2667.6,2667.0,3.7494]
[1739453946716,3.74871,2667.6,2666.9,4.57525]
[1739453946925,7.855,2667.8,2667.1,3.74936]
[1739453947274,4.10648,2667.8,2667.2,3.74922]
[1739453947422,0.358,2667.8,2666.9,4.57536]
[1739453947616,3.74877,2667.6,2666.9,4.57526]
[1739453947819,4.10643,2667.8,2667.1,3.7493]
[1739453948124,4.10643,2667.8,2666.8,6.74969]
[1739453948125,3.74909,2667.4,2666.8,6.74969]
[1739453948345,3.74929,2667.2,2666.6,3.75]
[1739453948513,3.74896,2667.4,2666.6,3.75]
[1739453948873,3.74927,2667.2,2666.7,3.0]
[1739453949014,7.49923,2667.0,2666.3,3.75041]
[1739453949360,3.74958,2667.0,2666.3,3.75041]
[1739453949561,3.74958,2667.0,2666.5,3.75023]
[1739453949722,3.74943,2667.1,2666.5,3.75016]
[1739453949917,3.74903,2667.4,2666.6,3.75008]
[1739453950133,0.356,2667.0,2666.5,3.0]
[1739453950341,4.10562,2667.0,2666.5,3.0]
[1739453950678,0.356,2667.0,2666.6,3.74998]
[1739453950885,0.356,2667.0,2666.2,3.7506]
[1739453951057,4.52329,2666.8,2666.2,3.75055]
[1739453951541,4.52329,2666.8,2665.9,0.8214]
[1739453951542,0.7734,2666.8,2666.3,3.75049]
[1739453951742,0.356,2666.8,2666.3,0.375049]
[1739453951969,0.356,2666.8,2666.6,3.75]
[1739453952724,0.356,2666.8,2666.7,3.74995]
[1739453953079,0.356,2666.8,2666.7,3.0]
[1739453953776,0.356,2666.8,2666.4,7.5006]
[1739453953777,0.356,2666.8,2666.3,3.7505]
[1739453954105,0.356,2666.8,2666.4,3.0]
[1739453954533,0.356,2666.8,2665.9,4.57244]
[1739453954534,3.75021,2666.6,2666.0,3.75083]
[1739453954676,4.10588,2666.8,2666.2,3.75064]
[1739453955010,4.10588,2666.8,2666.1,3.0]
[1739453955011,0.356,2666.8,2666.1,3.0]
[1739453955161,0.356,2666.8,2665.9,0.8214]
[1739453955364,0.356,2666.8,2666.4,3.75037]
[1739453955694,0.356,2666.8,2666.6,3.74998]
[1739453955871,0.356,2666.8,2666.5,3.75017]
[1739453956074,3.75004,2666.7,2666.1,3.75072]
[1739453956268,0.8194,2666.7,2665.5,0.8303]
[1739453956473,0.8194,2666.7,2665.8,3.7512]
[1739453956474,3.75048,2666.4,2665.8,3.7512]
[1739453956678,0.8194,2666.7,2665.5,4.58193]
[1739453956879,0.8194,2666.7,2665.4,3.75167]
[1739453956880,0.7842,2665.9,2665.4,3.75167]
[1739453957181,0.354,2665.8,2665.4,3.75167]
[1739453957394,0.354,2665.8,2665.4,7.50337]
[1739453957594,0.354,2665.8,2665.1,4.52063]
[1739453957908,0.354,2665.8,2665.6,3.75148]
[1739453958119,0.354,2665.8,2665.7,3.75135]
[1739453958645,0.354,2666.5,2666.4,3.75037]
[1739453958948,3.75052,2666.3,2665.7,3.7513]
[1739453959152,4.10424,2666.5,2666.0,3.75089]
[1739453959437,0.7891,2666.7,2666.3,3.75041]
[1739453959570,0.355,2666.4,2666.3,3.75051]
[1739453959767,0.355,2666.4,2666.2,7.50113]
[1739453959973,0.355,2666.4,2666.3,3.75051]
[1739453960453,0.355,2666.4,2666.2,7.50108]
[1739453960611,0.355,2666.4,2665.8,3.0]
[1739453960811,3.75066,2666.2,2665.6,3.7515]
[1739453961044,4.10547,2666.4,2665.9,3.75096]
[1739453961219,4.10547,2666.4,2665.2,3.75203]
[1739453961220,0.356,2666.3,2665.7,3.0]
[1739453961424,0.356,2666.3,2666.2,3.75065]
[1739453961629,0.7891,2666.7,2666.6,3.75009]
[1739453961835,0.7594,2667.1,2666.8,3.74971]
[1739453962161,0.356,2666.9,2666.7,3.74993]
[1739453962315,0.356,2666.9,2666.8,3.74981]
[1739453962520,0.356,2666.9,2666.4,3.0]
[1739453962776,1.1154,2667.1,2666.9,3.74964]
[1739453962944,1.1154,2667.1,2666.7,3.74984]
[1739453963334,1.1154,2667.1,2666.9,3.74966]
[1739453963540,1.1154,2667.1,2666.9,7.49925]
[1739453963884,3.74907,2667.4,2666.8,6.74978]
[1739453964108,0.355,2667.2,2666.8,3.0]
[1739453964404,3.74946,2667.1,2666.8,3.0]
[1739453964544,5.943,2667.3,2666.8,3.7497]
[1739453964911,0.354,2667.2,2667.0,3.74944]
[1739453965047,0.354,2667.2,2666.5,3.03749818]
[1739453965048,0.354,2667.2,2666.8,3.74972]
[1739453965248,0.354,2667.2,2666.8,3.7498]
[1739453965608,0.354,2667.2,2666.7,3.7499]
[1739453965806,0.354,2667.2,2666.8,3.74967]
[1739453966011,0.354,2667.2,2666.5,3.0]
[1739453966012,0.354,2667.2,2667.1,3.74939]
[1739453966506,0.354,2667.2,2667.0,3.74951]
[1739453966849,0.354,2667.2,2666.8,3.74972]
[1739453966850,0.354,2667.2,2666.1,0.8211]
[1739453967207,0.354,2667.2,2666.8,3.7498]
[1739453967345,0.354,2667.2,2666.8,3.74971]
[1739453967558,0.354,2667.2,2666.6,3.74999]
[1739453967559,3.74939,2667.1,2666.6,3.74999]
[1739453967883,5.943,2667.3,2666.5,0.03749969]
[1739453968047,5.943,2667.3,2667.0,3.74944]
[1739453968247,5.943,2667.3,2667.0,3.0]
[1739453968676,5.943,2667.3,2666.9,3.0]
[1739453968884,5.943,2667.3,2667.2,3.74925]
[1739453969112,5.943,2667.3,2667.2,6.74925]
[1739453969316,0.352,2667.8,2667.5,3.74875]
[1739453969530,0.8011,2668.2,2667.1,3.03748656]
[1739453969531,0.352,2667.9,2667.1,3.03748656]
[1739453969656,0.7593,2668.6,2668.5,3.74742]
[1739453970010,2.31026159,2669.6,2668.7,0.8028]
[1739453970152,2.31026159,2669.6,2669.1,3.74652]
[1739453970350,2.31026159,2669.6,2668.8,3.0]
[1739453970589,2.31026159,2669.6,2669.2,3.7463]
[1739453970944,2.31026159,2669.6,2669.4,3.7461]
[1739453971216,2.31026159,2669.6,2668.7,3.8028]
[1739453971348,2.31026159,2669.6,2669.3,3.74626]
[1739453971969,2.31026159,2669.6,2669.5,3.74601]
[1739453972175,2.31026159,2669.6,2669.5,6.74601]
[1739453973392,2.31026159,2669.6,2669.5,7.55181]
[1739453973809,2.31026159,2669.6,2669.5,3.8058]
[1739453973968,2.31026159,2669.6,2669.5,7.55181]
[1739453974171,2.31026159,2669.6,2669.5,8.681605]
[1739453975424,2.31026159,2669.6,2669.5,6.74601]
[1739453976423,2.31026159,2669.6,2669.5,3.0]
[1739453976934,2.31026159,2669.6,2669.5,6.74601]
[1739453977948,2.31026159,2669.6,2669.5,3.0]
[1739453978152,2.31026159,2669.6,2667.9,3.74815]
[1739453978361,2.31026159,2669.6,2668.5,3.74737]
[1739453978362,0.31394616,2669.5,2668.5,3.74737]
[1739453978561,3.74697,2668.9,2668.3,4.49898]
[1739453978726,3.74708,2668.8,2668.1,3.74786]
[1739453979258,7.4942,2668.8,2668.2,3.74784]
[1739453979460,1.1479,2668.9,2667.9,3.74818]
[1739453979709,3.74756,2668.4,2667.7,3.74844]
[1739453980000,3.748,2668.1,2667.5,3.74878]
[1739453980208,0.7662,2668.3,2667.6,3.74868]
[1739453980371,0.7662,2668.3,2667.5,3.74878]
[1739453980556,0.7662,2668.3,2667.7,3.74853]
[1739453980876,3.74816,2668.0,2667.4,3.74891]
[1739453981057,0.349,2667.9,2667.2,0.67868866]
[1739453981246,0.349,2667.9,2667.6,3.7486]
[1739453981445,0.349,2667.9,2667.4,3.74887]
[1739453981683,0.349,2667.9,2667.5,3.74872]
[1739453981840,0.349,2667.9,2667.5,6.74879]
[1739453982414,0.349,2667.9,2667.5,3.74878]
[1739453983114,0.349,2667.9,2667.3,3.74904]
[1739453983326,0.349,2667.9,2667.7,3.74846]
[1739453983611,0.7662,2668.3,2668.1,3.74788]
[1739453983814,0.7662,2668.3,2667.8,3.7484]
[1739453983815,0.347,2668.0,2667.8,3.7484]
[1739453984031,0.347,2668.0,2667.1,0.7504]
[1739453984309,0.347,2668.0,2667.8,3.7484]
[1739453984615,0.347,2668.0,2667.5,3.74871]
[1739453984827,4.0952,2668.0,2667.6,3.0]
[1739453985124,4.0952,2668.0,2667.4,3.0]
[1739453985333,4.0952,2668.0,2667.3,3.74905]
[1739453985334,3.74849,2667.8,2667.1,3.74928]
[1739453985457,4.0952,2668.0,2667.4,3.74883]
[1739453986001,4.0952,2668.0,2667.6,3.74859]
[1739453986002,0.347,2668.0,2667.6,3.74859]
[1739453986186,0.347,2668.0,2667.5,6.74871]
[1739453986382,0.347,2668.0,2667.6,3.74867]
[1739453986755,0.347,2668.0,2667.8,3.7483]
[1739453986929,0.347,2668.0,2667.7,3.74854]
[1739453987067,0.347,2668.0,2667.3,3.0]
[1739453987068,0.347,2668.0,2667.5,3.74874]
[1739453987266,4.09521,2668.0,2667.5,3.74874]
[1739453987485,4.09513,2668.0,2667.4,3.0]
[1739453987687,3.74872,2667.6,2667.1,3.7493]
[1739453987882,4.09518,2668.0,2667.5,3.74881]
[1739453988351,4.09518,2668.0,2667.3,3.74907]
[1739453988352,0.347,2668.0,2667.3,3.74907]
[1739453988469,3.74884,2667.5,2666.9,3.7496]
[1739453988673,7.49774,2667.5,2666.9,3.7496]
[1739453988965,3.74864,2667.7,2667.0,3.74948]
[1739453989197,3.74858,2667.7,2667.1,3.7493]
[1739453989408,0.346,2667.6,2666.9,0.03749012]
[1739453989625,0.346,2667.6,2667.5,3.74882]
[1739453989930,0.346,2667.6,2667.1,7.49863]
[1739453990104,3.74903,2667.4,2666.7,3.74994]
[1739453990269,8.253045,2667.6,2667.0,3.74951]
[1739453990665,4.504215,2667.6,2667.0,7.49896]
[1739453990843,0.346,2667.6,2667.2,3.74916]
[1739453991009,0.346,2667.6,2667.0,7.49889]
[1739453991213,3.74885,2667.5,2667.0,3.74943]
[1739453991415,0.346,2667.6,2667.0,3.74943]
[1739453991612,3.74892,2667.5,2666.8,10.49945]
[1739453991866,0.346,2667.6,2666.4,4.5681]
[1739453992012,0.346,2667.6,2667.2,3.74916]
[1739453992217,0.7563,2667.9,2667.4,3.74896]
[1739453992658,4.94836226,2668.3,2667.2,3.7806]
[1739453992659,0.345,2667.8,2667.2,3.7806]
[1739453992977,0.345,2667.8,2667.7,3.74854]
[1739453993614,0.8008,2668.3,2668.1,3.7479]
[1739453993858,0.344,2668.2,2668.1,3.7479]
[1739453994401,0.344,2668.2,2668.1,3.74798]
[1739453994605,0.344,2668.2,2668.0,3.74803]
[1739453994811,0.344,2668.2,2668.0,3.74804]
[1739453994989,0.344,2668.2,2668.1,3.74798]
[1739453995187,0.344,2668.2,2667.8,3.74829]
[1739453995397,0.344,2668.2,2667.9,3.74816]
[1739453995615,0.344,2668.2,2668.0,3.74803]
[1739453995791,0.344,2668.2,2667.9,3.74815]
[1739453996125,0.344,2668.2,2667.4,3.0]
[1739453996126,3.74819,2668.0,2667.4,3.74891]
[1739453996265,3.74799,2668.1,2667.6,3.74856]
[1739453996635,0.344,2668.2,2668.0,3.74805]
[1739453996770,0.344,2668.2,2668.1,3.74798]
[1739453996974,0.344,2668.2,2667.8,3.74838]
[1739453996975,2.31086318,2668.6,2668.4,3.74755]
[1739453997177,0.344,2668.5,2668.4,3.74755]
[1739453997599,0.344,2668.5,2667.8,3.7484]
[1739453997600,2.31086318,2668.6,2668.5,3.74742]
[1739453997813,2.65486318,2668.6,2668.5,3.74742]
[1739453998147,2.65486318,2668.6,2668.4,3.74755]
[1739453998352,2.65486318,2668.6,2668.5,3.74742]
[1739453998557,2.31086318,2668.6,2668.5,4.496917]
[1739453998761,2.31086318,2668.6,2668.5,7.496917]
[1739453998892,0.344,2669.0,2668.9,3.74686]
[1739453999530,0.344,2669.0,2668.9,6.74686]
[1739453999916,0.344,2669.0,2668.9,3.0]
[1739454000467,0.344,2669.0,2668.7,3.74711]
[1739454000679,0.8276,2668.8,2667.8,3.74831]
[1739454000903,0.8276,2668.8,2667.9,3.7857349]
[1739454001027,0.344,2669.0,2668.5,3.74742]
[1739454001227,0.344,2669.0,2668.9,3.74686]
[1739454002041,0.344,2669.0,2668.0,7.95849927]
[1739454002042,4.09084,2669.0,2668.2,3.74774]
[1739454002242,0.7797,2668.9,2668.2,3.74774]
[1739454002462,3.74712,2668.8,2668.2,3.74774]
[1739454002656,3.74712,2668.8,2668.1,3.7479]
[1739454002862,4.09121,2668.7,2668.2,3.74782]
[1739454003178,0.344,2668.7,2668.4,3.74754]
[1739454003331,0.344,2668.7,2667.7,0.8081]
[1739454003535,0.344,2668.7,2668.1,3.7479]
[1739454003732,3.74767,2668.4,2667.7,3.74845]
[1739454004060,0.757,2668.3,2667.9,3.74823]
[1739454004431,0.757,2668.3,2667.9,3.74818]
[1739454005064,0.757,2668.3,2667.3,0.8048]
[1739454005270,4.77537927,2668.2,2666.9,0.8216]
[1739454005444,3.74865,2667.7,2667.1,3.74931]
[1739454005648,0.344,2667.6,2667.2,3.74911]
[1739454005853,0.344,2667.6,2667.3,3.74909]
[1739454006058,0.344,2667.6,2666.6,0.8216]
[1739454006059,0.344,2667.6,2667.5,3.74882]
[1739454006471,0.344,2667.6,2667.2,3.74917]
[1739454006639,0.344,2667.6,2667.0,6.74942]
[1739454006640,4.09276,2667.6,2667.0,6.74942]
[1739454006839,0.817,2667.5,2667.3,3.74904]
[1739454007051,0.817,2667.5,2667.3,3.74902]
[1739454007249,0.344,2667.6,2667.5,3.74882]
[1739454007722,0.344,2667.6,2667.1,3.74931]
[1739454007852,4.09269,2667.6,2667.1,3.74931]
[1739454008057,0.344,2667.6,2667.3,3.7491]
[1739454008251,0.344,2667.6,2667.4,3.74895]
[1739454008505,0.344,2667.6,2667.5,3.74882]
[1739454008656,0.344,2667.6,2667.5,6.74882]
[1739454009656,0.344,2667.6,2667.5,3.0]
[1739454009857,0.344,2667.6,2667.5,6.74882]
[1739454010094,0.344,2667.6,2667.1,3.74937]
[1739454010420,1.1068,2667.6,2667.2,3.74924]
[1739454010621,1.1068,2667.6,2667.1,3.7493]
[1739454010911,4.85557,2667.6,2667.0,3.7494]
[1739454011113,1.1068,2667.6,2667.2,3.74914]
[1739454011499,3.74883,2667.5,2666.8,6.74969]
[1739454011700,1.1068,2667.6,2667.0,3.0]
[1739454011858,3.74944,2667.1,2666.6,3.74999]
[1739454012224,4.21037927,2667.5,2666.5,3.0]
[1739454012364,3.74938,2667.2,2666.6,3.74997]
[1739454012565,0.0075,2667.5,2666.5,3.75016]
[1739454012765,3.75644,2667.5,2666.9,3.74956]
[1739454013178,3.7564,2667.5,2666.9,3.74956]
[1739454013389,3.74903,2667.4,2666.8,3.74971]
[1739454013709,3.74927,2667.2,2666.6,3.0]
[1739454013907,3.7494,2667.1,2666.6,6.75003]
[1739454014266,3.74927,2667.2,2666.7,3.74995]
[1739454014579,3.74969,2666.9,2666.2,3.7506]
[1739454014784,3.74988,2666.8,2666.4,3.0]
[1739454014994,3.74984,2666.8,2666.4,3.0]
[1739454015301,3.74984,2666.8,2666.3,3.7504]
[1739454015877,3.74957,2667.0,2666.3,3.75044]
[1739454016085,0.7698,2667.1,2665.9,4.21037927]
[1739454016292,0.344,2667.0,2666.3,3.0]
[1739454016631,3.74967,2666.9,2666.3,3.0]
[1739454016831,0.344,2667.0,2665.8,0.7976]
[1739454016986,3.74991,2666.8,2666.2,3.75065]
[1739454017198,3.74991,2666.8,2665.5,4.54941]
[1739454017199,0.344,2667.0,2666.6,3.75008]
[1739454017531,0.344,2667.0,2665.6,7.24788501]
[1739454017532,4.0936,2667.0,2665.7,3.0]
[1739454017829,4.0936,2667.0,2665.5,0.7978]
[1739454017830,0.8126,2666.8,2665.8,7.50221]
[1739454018030,3.75009,2666.6,2665.7,3.75134]
[1739454018384,7.50183,2666.1,2665.5,8.30097]
[1739454018591,1.1481,2666.0,2665.6,3.0]
[1739454018809,1.1481,2666.0,2665.4,3.75175]
[1739454018986,1.1481,2666.0,2665.4,3.75168]
[1739454019187,3.75108,2665.9,2665.5,3.0]
[1739454019644,1.1481,2666.0,2665.7,3.75135]
[1739454020145,1.1481,2666.0,2665.6,3.75144]
[1739454020349,0.8041,2666.0,2665.9,3.75107]
[1739454020518,0.344,2666.0,2665.9,3.75107]
[1739454020721,0.344,2666.0,2665.6,3.75137]
[1739454020918,0.344,2666.0,2665.6,3.75148]
[1739454021135,0.344,2666.0,2665.7,3.75133]
[1739454021438,0.344,2666.0,2665.6,3.75148]
[1739454021746,0.344,2666.0,2665.7,3.0]
[1739454021959,0.7902,2666.4,2665.8,3.75111]
[1739454022154,0.344,2666.3,2666.2,3.75051]
[1739454022335,0.344,2666.4,2666.3,3.7505]
[1739454022701,0.344,2666.4,2666.3,6.7880037]
[1739454022903,0.344,2666.4,2666.3,6.7505]
[1739454023111,1.1342,2667.2,2666.5,0.7594]
[1739454023422,0.344,2667.2,2666.5,0.7594]
[1739454023749,3.74961,2667.0,2666.2,3.75062]
[1739454024048,3.74961,2667.0,2665.6,0.7594]
[1739454024049,5.00057927,2666.9,2665.6,0.7594]
[1739454024255,3.75003,2666.7,2665.8,3.75119]
[1739454024454,3.75003,2666.7,2666.0,3.7509]
[1739454024668,3.75003,2666.7,2666.1,3.7507]
[1739454024669,3.74996,2666.7,2666.1,3.7507]
[1739454024826,0.7902,2666.9,2665.9,3.0]
[1739454024827,3.75013,2666.6,2665.9,3.0]
[1739454025032,4.21037927,2666.6,2665.3,0.8069]
[1739454025216,4.53246,2666.2,2665.2,3.75196]
[1739454025412,4.53246,2666.2,2665.5,3.0]
[1739454025413,0.344,2666.1,2665.5,3.0]
[1739454025774,3.75101,2666.0,2665.4,6.75175]
[1739454026068,3.75131,2665.8,2665.2,3.0]
[1739454026381,0.7966,2665.7,2665.1,3.75217]
[1739454026816,0.7966,2665.7,2665.2,3.75205]
[1739454027009,0.7966,2665.7,2665.5,3.75151]
[1739454027209,0.7966,2665.7,2664.8,3.0]
[1739454027210,0.344,2665.6,2665.3,3.0]
[1739454027466,0.344,2665.5,2665.3,3.75188]
[1739454027674,0.344,2665.5,2665.3,7.50371]
[1739454027962,0.344,2665.5,2665.4,3.75178]
[1739454028459,0.344,2665.5,2665.4,6.75178]
[1739454028959,0.344,2665.7,2665.6,6.75141]
[1739454029156,0.8241,2666.1,2665.8,3.7512]
[1739454029334,0.344,2666.0,2665.8,3.75113]
[1739454029727,0.344,2666.0,2665.6,3.75141]
[1739454029728,0.344,2666.0,2665.7,3.0]
[1739454029949,0.344,2666.0,2665.7,6.75134]
[1739454030150,0.344,2666.0,2665.8,3.75113]
[1739454030350,5.945,2666.4,2665.9,3.75106]
[1739454030545,0.344,2666.3,2665.9,3.75105]
[1739454030873,0.344,2666.3,2665.4,8.30773]
[1739454030874,3.75074,2666.2,2665.4,8.30773]
[1739454031161,3.75082,2666.1,2665.5,3.75157]
[1739454031547,3.75082,2666.1,2665.2,6.75199]
[1739454031747,3.75132,2665.8,2665.0,3.75226]
[1739454032152,4.5424,2666.0,2665.3,3.75184]
[1739454032314,0.7914,2666.0,2665.6,3.75141]
[1739454032715,0.7914,2666.0,2665.3,0.37893596]
[1739454032716,0.07123611,2665.9,2665.3,0.37893596]
[1739454032949,0.07123611,2665.9,2665.4,3.0]
[1739454033870,0.07123611,2665.9,2665.3,3.75183]
[1739454033871,0.07123611,2665.9,2664.9,3.75237]
[1739454034161,7.57352611,2665.9,2665.2,3.75195]
[1739454034363,7.57352611,2665.9,2665.0,3.75222]
[1739454034364,4.30128,2665.8,2665.0,3.75222]
[1739454034563,3.75128,2665.8,2665.2,3.75199]
[1739454034731,3.75162,2665.6,2665.0,3.0]
[1739454035095,3.75162,2665.6,2664.1,0.7752]
[1739454035096,4.3015,2665.6,2664.1,0.7752]
[1739454035243,3.81917713,2665.7,2664.6,3.75281]
[1739454035244,3.75199,2665.3,2664.6,3.75281]
[1739454035566,0.4114154,2665.2,2664.7,3.75273]
[1739454035912,0.4114154,2665.2,2664.8,3.75253]
[1739454036428,0.344,2665.2,2664.9,3.0]
[1739454036849,0.7604,2665.0,2663.7,0.7958]
[1739454037049,3.75305,2664.5,2663.8,3.75401]
[1739454037257,3.75305,2664.5,2663.9,3.75388]
[1739454037435,3.75359,2664.2,2663.0,0.7561]
[1739454037776,0.344,2664.1,2663.5,3.75437]
[1739454037931,0.344,2664.1,2663.6,3.75431]
[1739454038125,4.16232032,2664.1,2663.4,3.75447]
[1739454038387,0.40871032,2664.1,2663.5,3.75435]
[1739454038546,0.40871032,2664.1,2663.6,3.7543]
[1739454038749,0.40871032,2664.1,2663.5,3.75435]
[1739454038956,0.40871032,2664.1,2663.0,4.51112]
[1739454039130,0.06471032,2664.1,2664.0,3.9004347]
[1739454039340,0.829,2664.8,2664.7,3.75262]
[1739454039667,3.75149,2665.7,2665.6,3.7515]
[1739454039668,1.1132,2665.7,2665.6,3.7515]
[1739454039851,1.1132,2665.7,2665.4,3.7517]
[1739454039852,0.7692,2665.7,2665.4,3.7517]
[1739454040052,0.344,2665.8,2665.7,3.75135]
[1739454040251,0.344,2665.8,2665.5,7.50303]
[1739454040500,0.344,2665.8,2665.5,3.75151]
[1739454040702,0.344,2665.8,2665.4,3.0]
[1739454040703,0.344,2665.8,2665.4,6.75174]
[1739454041015,0.344,2665.8,2664.8,0.8235]
[1739454041152,3.75221,2665.1,2664.5,0.7924]
[1739454041503,3.75249,2664.9,2664.2,3.75346]
[1739454041683,0.344,2664.8,2664.0,5.08276817]
[1739454041866,0.344,2664.8,2664.1,3.75353]
[1739454042200,0.344,2664.8,2664.1,3.75359]
[1739454042497,3.75278,2664.7,2664.0,0.1466847]
[1739454042694,0.344,2664.8,2664.0,0.1466847]
[1739454043433,3.75308,2664.5,2664.0,0.1466847]
[1739454043779,3.75319,2664.4,2664.0,0.1466847]
[1739454043982,3.75308,2664.5,2664.0,0.1466847]
[1739454044306,3.75279,2664.7,2664.1,3.0]
[1739454044307,7.50566,2664.7,2664.1,3.0]
[1739454044486,0.781,2664.9,2664.4,3.75318]
[1739454044704,0.344,2664.6,2664.4,3.75318]
[1739454044998,0.344,2664.9,2664.8,6.75251]
[1739454045200,0.7519,2665.7,2664.9,3.0]
[1739454045500,0.344,2665.6,2665.3,6.7519]
[1739454045651,0.39074252,2665.6,2665.3,6.7519]
[1739454045852,0.344,2665.6,2665.3,6.75191]
[1739454046058,0.344,2665.6,2665.0,1.0685]
[1739454046059,0.04674252,2665.5,2665.4,3.75178]
[1739454046262,0.04674252,2665.5,2665.4,6.75178]
[1739454046463,2.31336205,2665.8,2665.7,6.75135]
[1739454046872,2.3605814,2665.8,2665.7,6.75135]
[1739454047064,2.3605814,2665.8,2665.7,3.0]
[1739454047266,2.3605814,2665.8,2665.7,6.75135]
[1739454049163,2.3605814,2665.8,2665.3,3.75179]
[1739454049363,2.3605814,2665.8,2664.5,0.55]
[1739454049597,2.3605814,2665.8,2665.6,3.75146]
[1739454049794,2.3605814,2665.8,2665.7,7.50535]
[1739454050009,1.4e-06,2665.8,2665.7,7.51285]
[1739454050214,1.4e-06,2665.8,2665.7,8.07035]
[1739454050215,3e-06,2665.8,2665.7,8.07035]
[1739454050525,5.948,2666.5,2666.4,6.75037]
[1739454050868,5.99022052,2666.5,2666.4,6.75037]
[1739454051143,5.99022052,2666.5,2666.4,7.800458]
[1739454051405,0.04222052,2666.5,2666.4,13.52896664]
[1739454051561,0.04222052,2666.5,2666.4,14.07896664]
[1739454051761,1.1028,2667.6,2667.0,3.74939]
[1739454051963,1.1028,2667.6,2667.1,3.74925]
[1739454051964,0.7588,2667.6,2667.1,3.74925]
[1739454052296,3.74828,2667.9,2667.1,3.74925]
[1739454052297,0.04411229,2667.5,2667.4,6.74896]
[1739454052801,0.344,2667.9,2667.6,3.74864]
[1739454053136,0.344,2667.9,2667.4,3.0]
[1739454053802,0.344,2667.9,2667.6,3.74868]
[1739454054003,5.947,2668.2,2667.8,3.74831]
[1739454054303,0.344,2668.0,2667.8,3.74831]